[Event "Betsys MČR v online bleskovém šachu 2021"]
[Site "Chess.com"]
[Date "2021.04.17"]
[Round "7"]
[White "DrStillestein"]
[Black "stripe122"]
[Result "1-0"]
[WhiteElo "2102"]
[BlackElo "1789"]
[TimeControl "180+1"]
[EndTime "10:13:05 PDT"]
[Termination "Uživatel DrStillestein zvítězil matem"]

1. e4 {[%clk 0:03:00.9]} 1... c5 {[%clk 0:02:58.8]} 2. Nf3 {[%clk 0:03:01]} 2...
d6 {[%clk 0:02:57.7]} 3. c3 {[%clk 0:03:01.6]} 3... Nf6 {[%clk 0:02:56.6]} 4.
Be2 {[%clk 0:03:01.8]} 4... g6 {[%clk 0:02:55.3]} 5. O-O {[%clk 0:03:00.7]} 5...
Bg7 {[%clk 0:02:54.5]} 6. Re1 {[%clk 0:02:57.6]} 6... O-O {[%clk 0:02:53.9]} 7.
Bf1 {[%clk 0:02:57]} 7... Nc6 {[%clk 0:02:49.7]} 8. d4 {[%clk 0:02:55.5]} 8...
cxd4 {[%clk 0:02:48.7]} 9. cxd4 {[%clk 0:02:56.4]} 9... e6 {[%clk 0:02:43.1]}
10. Nc3 {[%clk 0:02:56.3]} 10... b6 {[%clk 0:02:42.5]} 11. a3 {[%clk 0:02:56.2]}
11... Bb7 {[%clk 0:02:41.8]} 12. Bg5 {[%clk 0:02:54.3]} 12... Qd7 {[%clk
0:02:35.8]} 13. Bxf6 {[%clk 0:02:39]} 13... Bxf6 {[%clk 0:02:32.9]} 14. e5
{[%clk 0:02:38]} 14... Bg7 {[%clk 0:02:32.3]} 15. Bb5 {[%clk 0:02:33.4]} 15...
d5 {[%clk 0:02:24.9]} 16. Qd3 {[%clk 0:02:27.3]} 16... a6 {[%clk 0:02:21.6]} 17.
Ba4 {[%clk 0:02:27.5]} 17... b5 {[%clk 0:02:20.4]} 18. Bb3 {[%clk 0:02:24]}
18... Na5 {[%clk 0:02:19.3]} 19. Ba2 {[%clk 0:02:22.7]} 19... Nc4 {[%clk
0:02:17.9]} 20. Bxc4 {[%clk 0:02:20.5]} 20... dxc4 {[%clk 0:02:17]} 21. Qe3
{[%clk 0:02:19.1]} 21... Rfd8 {[%clk 0:02:13.8]} 22. Rad1 {[%clk 0:02:18.5]}
22... Rac8 {[%clk 0:02:08.3]} 23. h3 {[%clk 0:02:11]} 23... a5 {[%clk
0:02:06.1]} 24. Ne4 {[%clk 0:02:04.5]} 24... Bxe4 {[%clk 0:01:57]} 25. Qxe4
{[%clk 0:02:05.4]} 25... Qd5 {[%clk 0:01:55.2]} 26. Qxd5 {[%clk 0:02:01.8]}
26... Rxd5 {[%clk 0:01:53.8]} 27. Rc1 {[%clk 0:01:58.3]} 27... b4 {[%clk
0:01:44.9]} 28. axb4 {[%clk 0:01:57.7]} 28... axb4 {[%clk 0:01:44.4]} 29. Re2
{[%clk 0:01:53.6]} 29... Bh6 {[%clk 0:01:39.9]} 30. Ra1 {[%clk 0:01:47.9]} 30...
Rd7 {[%clk 0:01:18.2]} 31. Rc2 {[%clk 0:01:45.5]} 31... Rdc7 {[%clk 0:01:07.7]}
32. Ra4 {[%clk 0:01:37.7]} 32... Rb8 {[%clk 0:00:55.7]} 33. g4 {[%clk
0:01:34.8]} 33... Bf8 {[%clk 0:00:53.4]} 34. Nd2 {[%clk 0:01:32.1]} 34... c3
{[%clk 0:00:47.3]} 35. bxc3 {[%clk 0:01:29.1]} 35... bxc3 {[%clk 0:00:46.2]} 36.
Ne4 {[%clk 0:01:28.6]} 36... Bb4 {[%clk 0:00:39.8]} 37. Kf1 {[%clk 0:01:16.5]}
37... Rc4 {[%clk 0:00:37.4]} 38. Ke2 {[%clk 0:01:11.4]} 38... Rxd4 {[%clk
0:00:37]} 39. Ke3 {[%clk 0:00:59.8]} 39... Rc4 {[%clk 0:00:29.9]} 40. Kd3 {[%clk
0:00:55.6]} 40... Rbc8 {[%clk 0:00:28.9]} 41. Nd6 {[%clk 0:00:50.2]} 41... Bxd6
{[%clk 0:00:22.5]} 42. Rxc4 {[%clk 0:00:50.3]} 42... Rxc4 {[%clk 0:00:20.1]} 43.
Kxc4 {[%clk 0:00:50.5]} 43... Bxe5 {[%clk 0:00:19.4]} 44. Re2 {[%clk 0:00:48.6]}
44... Bf6 {[%clk 0:00:17.7]} 45. f4 {[%clk 0:00:48.8]} 45... g5 {[%clk
0:00:15.4]} 46. fxg5 {[%clk 0:00:48.2]} 46... Bxg5 {[%clk 0:00:12.1]} 47. Kxc3
{[%clk 0:00:48.5]} 47... Kg7 {[%clk 0:00:12]} 48. Kd4 {[%clk 0:00:48.6]} 48...
Bf6+ {[%clk 0:00:10.8]} 49. Ke4 {[%clk 0:00:49]} 49... Kg6 {[%clk 0:00:10.2]}
50. Rf2 {[%clk 0:00:49]} 50... Bg5 {[%clk 0:00:07.8]} 51. Rf3 {[%clk 0:00:47.6]}
51... f6 {[%clk 0:00:05]} 52. Rf1 {[%clk 0:00:44.4]} 52... e5 {[%clk 0:00:04.8]}
53. Rf3 {[%clk 0:00:43.4]} 53... Bf4 {[%clk 0:00:04.3]} 54. h4 {[%clk
0:00:42.3]} 54... h5 {[%clk 0:00:03]} 55. gxh5+ {[%clk 0:00:27.5]} 55... Kxh5
{[%clk 0:00:01.9]} 56. Rh3 {[%clk 0:00:27.6]} 56... Kg6 {[%clk 0:00:02.1]} 57.
Kf3 {[%clk 0:00:27]} 57... Kh5 {[%clk 0:00:01.7]} 58. Rh1 {[%clk 0:00:26.2]}
58... Bh6 {[%clk 0:00:01.2]} 59. Ke4 {[%clk 0:00:26]} 59... Kg6 {[%clk
0:00:01.2]} 60. h5+ {[%clk 0:00:25.4]} 60... Kf7 {[%clk 0:00:02.1]} 61. Kf5
{[%clk 0:00:25.5]} 61... Bg5 {[%clk 0:00:02.2]} 62. h6 {[%clk 0:00:23.8]} 62...
Kg8 {[%clk 0:00:01.9]} 63. h7+ {[%clk 0:00:22.4]} 63... Kh8 {[%clk 0:00:02.4]}
64. Kg6 {[%clk 0:00:21.9]} 64... e4 {[%clk 0:00:02]} 65. Ra1 {[%clk 0:00:21.7]}
65... Be3 {[%clk 0:00:01.6]} 66. Ra8# {[%clk 0:00:21.9]} 1-0

[Event "Betsys MČR v online bleskovém šachu 2021"]
[Site "Chess.com"]
[Date "2021.04.17"]
[Round "7"]
[White "JakubPulpan"]
[Black "Herracek"]
[Result "1-0"]
[WhiteElo "2715"]
[BlackElo "2608"]
[TimeControl "180+1"]
[EndTime "10:13:06 PDT"]
[Termination "Uživatel JakubPulpan zvítězil po vzdání soupeře"]

1. Nf3 {[%clk 0:03:00.9]} 1... c5 {[%clk 0:02:59.9]} 2. e3 {[%clk 0:03:00.7]}
2... Nf6 {[%clk 0:02:56.2]} 3. b3 {[%clk 0:03:00.9]} 3... g6 {[%clk 0:02:55.5]}
4. Bb2 {[%clk 0:03:01.3]} 4... Bg7 {[%clk 0:02:56.1]} 5. c4 {[%clk 0:03:02.2]}
5... Nc6 {[%clk 0:02:53.3]} 6. Nc3 {[%clk 0:03:02.7]} 6... b6 {[%clk 0:02:52.9]}
7. Be2 {[%clk 0:02:49]} 7... O-O {[%clk 0:02:51.3]} 8. d4 {[%clk 0:02:47.3]}
8... cxd4 {[%clk 0:02:50.6]} 9. Nxd4 {[%clk 0:02:48.2]} 9... Nxd4 {[%clk
0:02:46.9]} 10. Qxd4 {[%clk 0:02:45.2]} 10... Bb7 {[%clk 0:02:44.9]} 11. O-O
{[%clk 0:02:44.7]} 11... Ne4 {[%clk 0:02:28.6]} 12. Qd3 {[%clk 0:02:43.1]} 12...
Nc5 {[%clk 0:02:26.8]} 13. Qd2 {[%clk 0:02:39.5]} 13... Rc8 {[%clk 0:02:19.6]}
14. Rfd1 {[%clk 0:02:38.1]} 14... a5 {[%clk 0:02:09.4]} 15. Rac1 {[%clk
0:02:36.8]} 15... Qc7 {[%clk 0:02:03.2]} 16. Nb5 {[%clk 0:02:18.5]} 16... Qb8
{[%clk 0:02:01.3]} 17. Bxg7 {[%clk 0:02:17.5]} 17... Kxg7 {[%clk 0:02:02.2]} 18.
Qd4+ {[%clk 0:02:11]} 18... Kg8 {[%clk 0:02:01.6]} 19. Qh4 {[%clk 0:02:08]}
19... Rfe8 {[%clk 0:01:53.4]} 20. Qh3 {[%clk 0:01:47.7]} 20... Rcd8 {[%clk
0:01:32.2]} 21. Bf3 {[%clk 0:01:46]} 21... d6 {[%clk 0:01:24]} 22. Bxb7 {[%clk
0:01:42]} 22... Qxb7 {[%clk 0:01:22.6]} 23. Nc3 {[%clk 0:01:38.8]} 23... Qd7
{[%clk 0:01:17.4]} 24. Qh4 {[%clk 0:01:34.6]} 24... Rb8 {[%clk 0:01:16]} 25. Nd5
{[%clk 0:01:32]} 25... b5 {[%clk 0:01:10.7]} 26. h3 {[%clk 0:01:15.3]} 26... a4
{[%clk 0:00:53]} 27. cxb5 {[%clk 0:01:06.5]} 27... Rxb5 {[%clk 0:00:24.6]} 28.
b4 {[%clk 0:01:01.9]} 28... Ne6 {[%clk 0:00:22.4]} 29. a3 {[%clk 0:00:51.8]}
29... Rb7 {[%clk 0:00:22.2]} 30. Qe4 {[%clk 0:00:45.2]} 30... Reb8 {[%clk
0:00:20]} 31. Rc4 {[%clk 0:00:44]} 31... Nc7 {[%clk 0:00:19.2]} 32. Nxe7+ {[%clk
0:00:41.5]} 32... Kf8 {[%clk 0:00:19.1]} 33. Nd5 {[%clk 0:00:39.4]} 33... Nxd5
{[%clk 0:00:18.4]} 34. Qxd5 {[%clk 0:00:40.3]} 34... Rb6 {[%clk 0:00:18.3]} 35.
Rdc1 {[%clk 0:00:38.9]} 35... Qe6 {[%clk 0:00:17.8]} 36. Qd4 {[%clk 0:00:36.6]}
36... Kg8 {[%clk 0:00:15.9]} 37. Qd1 {[%clk 0:00:31]} 37... h6 {[%clk
0:00:14.8]} 38. Qxa4 {[%clk 0:00:29.8]} 38... d5 {[%clk 0:00:13.7]} 39. Rc6
{[%clk 0:00:29.1]} 39... Qe4 {[%clk 0:00:12.2]} 40. Rxb6 {[%clk 0:00:26.8]}
40... Rxb6 {[%clk 0:00:13.1]} 41. Qc2 {[%clk 0:00:27.4]} 41... Qe5 {[%clk
0:00:11.2]} 42. Qc8+ {[%clk 0:00:27.2]} 42... Kh7 {[%clk 0:00:10.6]} 43. Qc3
{[%clk 0:00:27.3]} 43... Qe6 {[%clk 0:00:10.3]} 44. Qd4 {[%clk 0:00:25.2]} 44...
Ra6 {[%clk 0:00:10.6]} 45. Rc3 {[%clk 0:00:24]} 45... Qd7 {[%clk 0:00:09.6]} 46.
e4 {[%clk 0:00:20.2]} 46... Rd6 {[%clk 0:00:08.7]} 47. Rd3 {[%clk 0:00:20.7]}
47... Qa4 {[%clk 0:00:07.6]} 48. exd5 {[%clk 0:00:20.5]} 48... Qc2 {[%clk
0:00:07.8]} 49. g3 {[%clk 0:00:18.8]} 49... Rd8 {[%clk 0:00:07.2]} 50. d6 {[%clk
0:00:18.7]} 50... Re8 {[%clk 0:00:07.5]} 51. Rd1 {[%clk 0:00:18.6]} 51... Re4
{[%clk 0:00:05.3]} 52. Qd2 {[%clk 0:00:13.1]} 52... Qc8 {[%clk 0:00:04.1]} 53.
d7 {[%clk 0:00:13.3]} 53... Qd8 {[%clk 0:00:04.7]} 54. Qd5 {[%clk 0:00:13.6]}
54... Re7 {[%clk 0:00:05]} 55. b5 {[%clk 0:00:13.2]} 55... Kg7 {[%clk
0:00:05.3]} 56. b6 {[%clk 0:00:13]} 56... f6 {[%clk 0:00:05.4]} 57. b7 {[%clk
0:00:13.3]} 57... Re5 {[%clk 0:00:05.7]} 58. Qxe5 {[%clk 0:00:13.1]} 58... fxe5
{[%clk 0:00:05.9]} 59. b8=Q {[%clk 0:00:13.8]} 59... Qxb8 {[%clk 0:00:06.1]} 60.
d8=Q {[%clk 0:00:14.5]} 60... Qxd8 {[%clk 0:00:06.7]} 61. Rxd8 {[%clk
0:00:15.2]} 61... Kf6 {[%clk 0:00:07.6]} 62. Rd2 {[%clk 0:00:15.9]} 62... Kf5
{[%clk 0:00:07.9]} 63. Re2 {[%clk 0:00:16.8]} 63... h5 {[%clk 0:00:07.6]} 64.
Re3 {[%clk 0:00:17.7]} 64... h4 {[%clk 0:00:08.5]} 65. gxh4 {[%clk 0:00:17.9]}
65... Kf4 {[%clk 0:00:09.1]} 66. a4 {[%clk 0:00:18.1]} 66... e4 {[%clk
0:00:09.7]} 67. a5 {[%clk 0:00:18.6]} 67... g5 {[%clk 0:00:10]} 68. hxg5 {[%clk
0:00:19.5]} 1-0

[Event "Betsys MČR v online bleskovém šachu 2021"]
[Site "Chess.com"]
[Date "2021.04.17"]
[Round "7"]
[White "DavidekIII"]
[Black "DONSANMIGUEL"]
[Result "1-0"]
[WhiteElo "2196"]
[BlackElo "1814"]
[TimeControl "180+1"]
[EndTime "10:13:07 PDT"]
[Termination "Uživatel DavidekIII zvítězil na čas"]

1. d4 {[%clk 0:03:00.8]} 1... a6 {[%clk 0:03:00.9]} 2. c4 {[%clk 0:02:50.8]}
2... b5 {[%clk 0:03:01.8]} 3. cxb5 {[%clk 0:02:48.6]} 3... axb5 {[%clk
0:03:02.7]} 4. e3 {[%clk 0:02:46.3]} 4... Bb7 {[%clk 0:03:02.5]} 5. Nf3 {[%clk
0:02:45]} 5... b4 {[%clk 0:03:02.6]} 6. Bc4 {[%clk 0:02:42.4]} 6... e6 {[%clk
0:03:03.5]} 7. O-O {[%clk 0:02:39.6]} 7... Nf6 {[%clk 0:03:03.1]} 8. Qb3 {[%clk
0:02:17.8]} 8... Nc6 {[%clk 0:02:59.3]} 9. Bb5 {[%clk 0:02:02.2]} 9... Na5
{[%clk 0:02:49.8]} 10. Qc2 {[%clk 0:01:58.5]} 10... Bxf3 {[%clk 0:02:47.1]} 11.
gxf3 {[%clk 0:01:59.3]} 11... Be7 {[%clk 0:02:19.4]} 12. e4 {[%clk 0:01:54.1]}
12... O-O {[%clk 0:02:13.5]} 13. Be3 {[%clk 0:01:50.5]} 13... d6 {[%clk
0:02:00.7]} 14. Bd3 {[%clk 0:01:47.2]} 14... e5 {[%clk 0:01:57.9]} 15. Nd2
{[%clk 0:01:42.8]} 15... Nh5 {[%clk 0:01:53.2]} 16. d5 {[%clk 0:01:18.1]} 16...
Qd7 {[%clk 0:01:28.9]} 17. Kh1 {[%clk 0:01:10.8]} 17... Bd8 {[%clk 0:01:24]} 18.
Rg1 {[%clk 0:01:05.6]} 18... Qh3 {[%clk 0:01:08.1]} 19. Bf1 {[%clk 0:00:56.1]}
19... Qh4 {[%clk 0:00:56.7]} 20. Rg4 {[%clk 0:00:47.9]} 20... Qf6 {[%clk
0:00:51.6]} 21. Be2 {[%clk 0:00:37.3]} 21... Nf4 {[%clk 0:00:46.9]} 22. Bxf4
{[%clk 0:00:35.6]} 22... exf4 {[%clk 0:00:46.3]} 23. Rag1 {[%clk 0:00:29.5]}
23... g6 {[%clk 0:00:44.2]} 24. Bd3 {[%clk 0:00:25.2]} 24... Nb7 {[%clk
0:00:33.1]} 25. Bc4 {[%clk 0:00:25.2]} 25... Nc5 {[%clk 0:00:30.8]} 26. Ra1
{[%clk 0:00:21.6]} 26... Nd7 {[%clk 0:00:30.2]} 27. Rgg1 {[%clk 0:00:20.3]}
27... Ne5 {[%clk 0:00:30.1]} 28. Rac1 {[%clk 0:00:18.4]} 28... Qh4 {[%clk
0:00:29.8]} 29. Rg2 {[%clk 0:00:16.7]} 29... Qh3 {[%clk 0:00:28.9]} 30. Qb3
{[%clk 0:00:16.4]} 30... h5 {[%clk 0:00:26.8]} 31. Bf1 {[%clk 0:00:14.4]} 31...
Qh4 {[%clk 0:00:20.9]} 32. Nc4 {[%clk 0:00:11.9]} 32... Nxf3 {[%clk 0:00:16.2]}
33. Qxf3 {[%clk 0:00:10.7]} 33... Kh7 {[%clk 0:00:13.7]} 34. Nd2 {[%clk
0:00:09.3]} 34... Bf6 {[%clk 0:00:10.8]} 35. Bc4 {[%clk 0:00:07.8]} 35... Be5
{[%clk 0:00:10]} 36. Rcg1 {[%clk 0:00:07.5]} 36... Rg8 {[%clk 0:00:08.7]} 37.
Nb1 {[%clk 0:00:06.8]} 37... Rg7 {[%clk 0:00:08.7]} 38. Qd3 {[%clk 0:00:05.7]}
38... Rag8 {[%clk 0:00:07.5]} 39. f3 {[%clk 0:00:05.9]} 39... Qh3 {[%clk
0:00:06.7]} 40. Nd2 {[%clk 0:00:05.5]} 40... Bxb2 {[%clk 0:00:06]} 41. Qf1
{[%clk 0:00:05]} 41... Bc3 {[%clk 0:00:04.4]} 42. Qe2 {[%clk 0:00:03.4]} 42...
Qh4 {[%clk 0:00:05.3]} 43. Bb3 {[%clk 0:00:03]} 43... Be5 {[%clk 0:00:06.2]} 44.
Nc4 {[%clk 0:00:02.7]} 44... Qh3 {[%clk 0:00:07.1]} 45. Nxe5 {[%clk 0:00:02.7]}
45... Qh4 {[%clk 0:00:08]} 46. Nc4 {[%clk 0:00:02.1]} 46... Qh3 {[%clk
0:00:08.1]} 47. Nd2 {[%clk 0:00:02.6]} 47... Qh4 {[%clk 0:00:08.2]} 48. Qf2
{[%clk 0:00:03.2]} 48... Qe7 {[%clk 0:00:08.6]} 49. Nc4 {[%clk 0:00:02.7]} 49...
Qf6 {[%clk 0:00:08.2]} 50. e5 {[%clk 0:00:03.6]} 50... Qh4 {[%clk 0:00:07.8]}
51. e6 {[%clk 0:00:03.3]} 51... fxe6 {[%clk 0:00:07]} 52. dxe6 {[%clk
0:00:04.2]} 52... Qf6 {[%clk 0:00:05.5]} 53. Qe2 {[%clk 0:00:03.9]} 53... Qe7
{[%clk 0:00:04.9]} 54. Re1 {[%clk 0:00:04.2]} 54... g5 {[%clk 0:00:04.6]} 55.
Qe4+ {[%clk 0:00:04.2]} 55... Kh8 {[%clk 0:00:02.2]} 56. Na5 {[%clk 0:00:04.6]}
56... Rg6 {[%clk 0:00:01.6]} 57. Nc6 {[%clk 0:00:04.2]} 1-0

[Event "Betsys MČR v online bleskovém šachu 2021"]
[Site "Chess.com"]
[Date "2021.04.17"]
[Round "7"]
[White "Saygram"]
[Black "krystofkrizek1"]
[Result "1-0"]
[WhiteElo "2415"]
[BlackElo "2137"]
[TimeControl "180+1"]
[EndTime "10:13:10 PDT"]
[Termination "Uživatel Saygram zvítězil matem"]

1. e4 {[%clk 0:03:00.9]} 1... g6 {[%clk 0:02:55.6]} 2. d4 {[%clk 0:03:00.4]}
2... d5 {[%clk 0:02:54.6]} 3. exd5 {[%clk 0:02:42.7]} 3... Nf6 {[%clk
0:02:49.4]} 4. c4 {[%clk 0:02:40.4]} 4... Bg7 {[%clk 0:02:48.8]} 5. Nf3 {[%clk
0:02:37.9]} 5... Bg4 {[%clk 0:02:44.3]} 6. Be2 {[%clk 0:02:34.6]} 6... b5 {[%clk
0:02:44]} 7. cxb5 {[%clk 0:02:26.8]} 7... O-O {[%clk 0:02:42.8]} 8. O-O {[%clk
0:02:23.2]} 8... Nxd5 {[%clk 0:02:36.7]} 9. h3 {[%clk 0:02:21.7]} 9... Be6
{[%clk 0:02:27.8]} 10. Nc3 {[%clk 0:02:19.6]} 10... c6 {[%clk 0:02:21.8]} 11.
bxc6 {[%clk 0:02:18.4]} 11... Nxc6 {[%clk 0:02:22.7]} 12. Ne4 {[%clk 0:02:11.3]}
12... Qb6 {[%clk 0:02:16]} 13. Nc5 {[%clk 0:01:51.2]} 13... Nxd4 {[%clk
0:01:42.2]} 14. Nxe6 {[%clk 0:01:19.4]} 14... Nxe2+ {[%clk 0:01:28.2]} 15. Qxe2
{[%clk 0:01:18.8]} 15... Qxe6 {[%clk 0:01:29.1]} 16. Qxe6 {[%clk 0:01:17]} 16...
fxe6 {[%clk 0:01:30]} 17. Bd2 {[%clk 0:01:13.7]} 17... Bxb2 {[%clk 0:01:22.5]}
18. Rab1 {[%clk 0:01:13.4]} 18... Bf6 {[%clk 0:01:22.8]} 19. Rfe1 {[%clk
0:01:10.2]} 19... Rab8 {[%clk 0:01:19.4]} 20. Rxb8 {[%clk 0:00:58.3]} 20... Rxb8
{[%clk 0:01:20.3]} 21. Rxe6 {[%clk 0:00:58.3]} 21... Rb2 {[%clk 0:01:13.5]} 22.
Ra6 {[%clk 0:00:55.5]} 22... Rb7 {[%clk 0:01:01.2]} 23. g4 {[%clk 0:00:55]}
23... Kf7 {[%clk 0:00:51.6]} 24. Ra5 {[%clk 0:00:51.8]} 24... Nc3 {[%clk
0:00:47.3]} 25. Bxc3 {[%clk 0:00:46.9]} 25... Bxc3 {[%clk 0:00:48.2]} 26. Ra6
{[%clk 0:00:45.1]} 26... Bf6 {[%clk 0:00:39]} 27. Kg2 {[%clk 0:00:42.3]} 27...
h6 {[%clk 0:00:38.6]} 28. Kg3 {[%clk 0:00:41.6]} 28... Rd7 {[%clk 0:00:34.4]}
29. h4 {[%clk 0:00:41.1]} 29... g5 {[%clk 0:00:30.1]} 30. h5 {[%clk 0:00:39.5]}
30... Rc7 {[%clk 0:00:27.7]} 31. Kg2 {[%clk 0:00:36.9]} 31... Rd7 {[%clk
0:00:26.6]} 32. Kf1 {[%clk 0:00:35.8]} 32... Rc7 {[%clk 0:00:24.9]} 33. Ra4
{[%clk 0:00:31.2]} 33... Rb7 {[%clk 0:00:21.1]} 34. Nd2 {[%clk 0:00:29]} 34...
Rb2 {[%clk 0:00:18.3]} 35. Ne4 {[%clk 0:00:27.2]} 35... Rb7 {[%clk 0:00:17.4]}
36. Ng3 {[%clk 0:00:24.9]} 36... Rc7 {[%clk 0:00:16]} 37. Nf5 {[%clk 0:00:24.8]}
37... Rc1+ {[%clk 0:00:11.9]} 38. Kg2 {[%clk 0:00:24.2]} 38... Rc2 {[%clk
0:00:11.1]} 39. Nxh6+ {[%clk 0:00:22.9]} 39... Ke6 {[%clk 0:00:11.7]} 40. Nf5
{[%clk 0:00:20.4]} 40... Ke5 {[%clk 0:00:12.1]} 41. Kf3 {[%clk 0:00:19]} 41...
Rc3+ {[%clk 0:00:11.8]} 42. Ke2 {[%clk 0:00:18.9]} 42... Rc8 {[%clk 0:00:08.6]}
43. f3 {[%clk 0:00:17.6]} 43... Rb8 {[%clk 0:00:07.2]} 44. h6 {[%clk 0:00:17.1]}
44... e6 {[%clk 0:00:04.2]} 45. Ne3 {[%clk 0:00:15.1]} 45... Rh8 {[%clk
0:00:04.6]} 46. Ra5+ {[%clk 0:00:14]} 46... Kd6 {[%clk 0:00:04.4]} 47. Rxa7
{[%clk 0:00:13.1]} 47... Rxh6 {[%clk 0:00:03.9]} 48. Ra6+ {[%clk 0:00:13.2]}
48... Ke7 {[%clk 0:00:03.9]} 49. Nc4 {[%clk 0:00:12.4]} 49... Rh2+ {[%clk
0:00:04]} 50. Ke3 {[%clk 0:00:12.5]} 50... Rh1 {[%clk 0:00:03]} 51. Nd2 {[%clk
0:00:12.3]} 51... Re1+ {[%clk 0:00:03]} 52. Kf2 {[%clk 0:00:11.9]} 52... Rh1
{[%clk 0:00:03.4]} 53. Ne4 {[%clk 0:00:12.1]} 53... Rh2+ {[%clk 0:00:03.8]} 54.
Kg3 {[%clk 0:00:11.8]} 54... Be5+ {[%clk 0:00:04.4]} 55. f4 {[%clk 0:00:12]}
55... Bxf4+ {[%clk 0:00:05.2]} 56. Kf3 {[%clk 0:00:12.4]} 56... Rh3+ {[%clk
0:00:06.1]} 57. Ke2 {[%clk 0:00:12.2]} 57... Rh2+ {[%clk 0:00:07]} 58. Kd3
{[%clk 0:00:12.3]} 58... Rh3+ {[%clk 0:00:07.9]} 59. Kd4 {[%clk 0:00:12.5]}
59... Re3 {[%clk 0:00:08.5]} 60. Nc5 {[%clk 0:00:11.9]} 60... e5+ {[%clk
0:00:09.4]} 61. Kd5 {[%clk 0:00:11.8]} 61... Re1 {[%clk 0:00:09.9]} 62. Ra7+
{[%clk 0:00:12.1]} 62... Ke8 {[%clk 0:00:10.1]} 63. Ke6 {[%clk 0:00:12.4]} 63...
Kf8 {[%clk 0:00:10.5]} 64. Nd7+ {[%clk 0:00:11.6]} 64... Kg7 {[%clk 0:00:10.6]}
65. Nf6+ {[%clk 0:00:12.2]} 65... Kg6 {[%clk 0:00:11]} 66. Ra8 {[%clk
0:00:11.7]} 66... Rc1 {[%clk 0:00:10.9]} 67. Rg8+ {[%clk 0:00:11.7]} 67... Kh6
{[%clk 0:00:11.4]} 68. Kf5 {[%clk 0:00:11.5]} 68... Rc7 {[%clk 0:00:10.9]} 69.
Rg6# {[%clk 0:00:12]} 1-0

[Event "Betsys MČR v online bleskovém šachu 2021"]
[Site "Chess.com"]
[Date "2021.04.17"]
[Round "7"]
[White "CZMaster666"]
[Black "czlolcz"]
[Result "1-0"]
[WhiteElo "1927"]
[BlackElo "2161"]
[TimeControl "180+1"]
[EndTime "10:13:13 PDT"]
[Termination "Uživatel CZMaster666 zvítězil matem"]

1. e4 {[%clk 0:02:34]} 1... e5 {[%clk 0:02:55.8]} 2. Nf3 {[%clk 0:02:34.1]} 2...
Nf6 {[%clk 0:02:49.8]} 3. Nc3 {[%clk 0:02:33.5]} 3... Nc6 {[%clk 0:02:48.8]} 4.
Bb5 {[%clk 0:02:33.7]} 4... Bb4 {[%clk 0:02:47.5]} 5. O-O {[%clk 0:02:33.8]}
5... O-O {[%clk 0:02:40.7]} 6. Re1 {[%clk 0:02:32.2]} 6... d6 {[%clk 0:02:38.6]}
7. d3 {[%clk 0:02:32.4]} 7... Qe7 {[%clk 0:02:32.5]} 8. Bg5 {[%clk 0:02:30.7]}
8... Bxc3 {[%clk 0:02:32.4]} 9. bxc3 {[%clk 0:02:30.5]} 9... Nd8 {[%clk
0:02:33]} 10. d4 {[%clk 0:02:25.5]} 10... Ne6 {[%clk 0:02:24.1]} 11. Bh4 {[%clk
0:02:20.5]} 11... Nf4 {[%clk 0:02:22.8]} 12. g3 {[%clk 0:02:00.1]} 12... Ng6
{[%clk 0:02:20.9]} 13. Bf1 {[%clk 0:01:47.7]} 13... Bg4 {[%clk 0:02:05.1]} 14.
Bxf6 {[%clk 0:01:46.2]} 14... Qxf6 {[%clk 0:02:03.4]} 15. Bg2 {[%clk 0:01:46.5]}
15... c5 {[%clk 0:01:56.8]} 16. d5 {[%clk 0:01:43.3]} 16... b5 {[%clk
0:01:47.9]} 17. Rb1 {[%clk 0:01:42]} 17... Rab8 {[%clk 0:01:45.6]} 18. h3 {[%clk
0:01:40.7]} 18... Bxf3 {[%clk 0:01:39.6]} 19. Bxf3 {[%clk 0:01:36.8]} 19... Ne7
{[%clk 0:01:34.5]} 20. Qe2 {[%clk 0:01:29.6]} 20... a6 {[%clk 0:01:30.5]} 21.
Bg4 {[%clk 0:01:26.6]} 21... g6 {[%clk 0:01:20.2]} 22. a4 {[%clk 0:01:25.4]}
22... c4 {[%clk 0:00:59.8]} 23. axb5 {[%clk 0:01:22.6]} 23... axb5 {[%clk
0:01:00.7]} 24. Bd7 {[%clk 0:01:22.1]} 24... Qg5 {[%clk 0:00:48.6]} 25. Bxb5
{[%clk 0:01:16.4]} 25... f5 {[%clk 0:00:47.6]} 26. Bxc4 {[%clk 0:01:13.2]} 26...
fxe4 {[%clk 0:00:37.3]} 27. Qxe4 {[%clk 0:01:06.9]} 27... Rxb1 {[%clk
0:00:33.4]} 28. Rxb1 {[%clk 0:01:07.8]} 28... Qd2 {[%clk 0:00:33.1]} 29. Qe3
{[%clk 0:00:41.4]} 29... Qxc2 {[%clk 0:00:32.2]} 30. Rb7 {[%clk 0:00:33.4]}
30... Nf5 {[%clk 0:00:28.1]} 31. Qg5 {[%clk 0:00:27]} 31... Qxc3 {[%clk
0:00:19.3]} 32. Bf1 {[%clk 0:00:21.8]} 32... Qd4 {[%clk 0:00:17.5]} 33. Bg2
{[%clk 0:00:20.6]} 33... e4 {[%clk 0:00:17.1]} 34. Qf4 {[%clk 0:00:19.4]} 34...
Qxd5 {[%clk 0:00:14]} 35. Bxe4 {[%clk 0:00:18.8]} 35... Qe5 {[%clk 0:00:14.6]}
36. Bxf5 {[%clk 0:00:17.3]} 36... Qxf4 {[%clk 0:00:12.2]} 37. Be6+ {[%clk
0:00:16.4]} 37... Qf7 {[%clk 0:00:11.6]} 38. Bxf7+ {[%clk 0:00:13.4]} 38... Rxf7
{[%clk 0:00:12.5]} 39. Rxf7 {[%clk 0:00:12.5]} 39... Kxf7 {[%clk 0:00:13.4]} 40.
Kf1 {[%clk 0:00:13.2]} 40... Ke6 {[%clk 0:00:13.8]} 41. Ke2 {[%clk 0:00:14.1]}
41... Ke5 {[%clk 0:00:14.4]} 42. Ke3 {[%clk 0:00:14.6]} 42... d5 {[%clk
0:00:14.3]} 43. f4+ {[%clk 0:00:14.6]} 43... Kf5 {[%clk 0:00:13.4]} 44. Kd4
{[%clk 0:00:15.5]} 44... Ke6 {[%clk 0:00:13.8]} 45. g4 {[%clk 0:00:14.6]} 45...
h5 {[%clk 0:00:12.7]} 46. Kc5 {[%clk 0:00:07.4]} 46... h4 {[%clk 0:00:11.1]} 47.
Kd4 {[%clk 0:00:03.8]} 47... Kd6 {[%clk 0:00:11.4]} 48. f5 {[%clk 0:00:04.4]}
48... g5 {[%clk 0:00:07.9]} 49. f6 {[%clk 0:00:03.7]} 49... Ke6 {[%clk
0:00:07.9]} 50. f7 {[%clk 0:00:04.6]} 50... Kxf7 {[%clk 0:00:08.3]} 51. Kxd5
{[%clk 0:00:05.5]} 51... Kf6 {[%clk 0:00:08]} 52. Kd6 {[%clk 0:00:06]} 52... Kf7
{[%clk 0:00:06.4]} 53. Ke5 {[%clk 0:00:06.1]} 53... Kg6 {[%clk 0:00:06.6]} 54.
Ke6 {[%clk 0:00:06.5]} 54... Kg7 {[%clk 0:00:06.4]} 55. Kf5 {[%clk 0:00:07]}
55... Kh6 {[%clk 0:00:06.9]} 56. Kf6 {[%clk 0:00:06.6]} 56... Kh7 {[%clk
0:00:07.5]} 57. Kxg5 {[%clk 0:00:07.5]} 57... Kg7 {[%clk 0:00:05.9]} 58. Kxh4
{[%clk 0:00:08.4]} 58... Kh6 {[%clk 0:00:06.5]} 59. Kg3 {[%clk 0:00:08.8]} 59...
Kg6 {[%clk 0:00:07.4]} 60. Kf4 {[%clk 0:00:09.4]} 60... Kh6 {[%clk 0:00:07.4]}
61. h4 {[%clk 0:00:10.3]} 61... Kg6 {[%clk 0:00:08]} 62. Ke5 {[%clk 0:00:10.7]}
62... Kh6 {[%clk 0:00:08.9]} 63. Ke6 {[%clk 0:00:11.4]} 63... Kg6 {[%clk
0:00:09.8]} 64. Ke7 {[%clk 0:00:11.6]} 64... Kh6 {[%clk 0:00:10.7]} 65. Kf7
{[%clk 0:00:12.2]} 65... Kh7 {[%clk 0:00:10.7]} 66. g5 {[%clk 0:00:12]} 66...
Kh8 {[%clk 0:00:11]} 67. h5 {[%clk 0:00:12.7]} 67... Kh7 {[%clk 0:00:11.4]} 68.
g6+ {[%clk 0:00:13.4]} 68... Kh8 {[%clk 0:00:11.9]} 69. g7+ {[%clk 0:00:14.3]}
69... Kh7 {[%clk 0:00:12.4]} 70. g8=Q+ {[%clk 0:00:15.2]} 70... Kh6 {[%clk
0:00:12.9]} 71. Kf6 {[%clk 0:00:15.3]} 71... Kxh5 {[%clk 0:00:13]} 72. Qg5#
{[%clk 0:00:15.6]} 1-0